fUST/lending_fUST_20260104
["ID","MTS","AMOUNT","RATE_DAILY","PERIOD"]
[400419439,1767534652979,-223.829416,0.00019178,2]
[400419440,1767534652989,-223.829416,0.00019178,2]
[400419441,1767534653000,-223.829416,0.00019178,2]
[400419442,1767534653010,-223.829416,0.00019178,2]
[400419443,1767534653019,-223.829416,0.00019178,2]
[400419444,1767534653030,-223.829416,0.00019178,2]
[400419445,1767534653040,-223.829416,0.00019178,2]
[400419446,1767534653050,-223.829416,0.00019178,2]
[400419447,1767534653062,-223.829416,0.00019178,2]
[400419448,1767534653072,-223.829416,0.00019178,2]
[400419449,1767534653082,-223.829416,0.00019178,2]
[400419450,1767534653095,-223.829411,0.00019178,2]
[400419451,1767534653115,-188.852135,0.00019178,2]
[400419452,1767534653136,-806.788912,0.00019178,2]
[400419453,1767534653147,-806.788912,0.00019178,2]
[400419454,1767534653158,-806.788912,0.00019178,2]
[400419455,1767534653168,-806.788912,0.00019178,2]
[400419456,1767534653178,-806.788912,0.00019178,2]
[400419457,1767534653188,-151.0,0.00019178,2]
[400419458,1767534653198,-806.788912,0.00019178,2]
[400419459,1767534653209,-151.0,0.00019178,2]
[400419460,1767534653220,-806.788912,0.00019178,2]
[400419461,1767534653230,-151.0,0.00019178,2]
[400419462,1767534653240,-806.788912,0.00019178,2]
[400419463,1767534653250,-151.0,0.00019178,2]
[400419464,1767534653261,-806.788912,0.00019178,2]
[400419465,1767534653271,-806.788912,0.00019178,2]
[400419466,1767534653281,-151.0,0.00019178,2]
[400419467,1767534653291,-806.788912,0.00019178,2]
[400419468,1767534653301,-151.0,0.00019178,2]
[400419469,1767534653311,-806.788912,0.00019178,2]
[400419470,1767534653322,-151.0,0.00019178,2]
[400419471,1767534653332,-806.788912,0.00019178,2]
[400419472,1767534653342,-151.0,0.00019178,2]
[400419473,1767534653352,-198.881208,0.00019178,2]
[400419474,1767534653363,-806.788912,0.00019178,2]
[400419475,1767534653373,-151.0,0.00019178,2]
[400419476,1767534653384,-806.788912,0.00019178,2]
[400419477,1767534653395,-151.0,0.00019178,2]
[400419478,1767534653405,-806.788912,0.00019178,2]
[400419479,1767534653415,-151.0,0.00019178,2]
[400419480,1767534653427,-806.788912,0.00019178,2]
[400419481,1767534653437,-151.0,0.00019178,2]
[400419482,1767534653447,-806.788912,0.00019178,2]
[400419483,1767534653457,-151.0,0.00019178,2]
[400419484,1767534653467,-806.788912,0.00019178,2]
[400419485,1767534653477,-151.0,0.00019178,2]
[400419486,1767534653487,-806.788903,0.00019178,2]
[400419487,1767534653496,-151.0,0.00019178,2]
[400419488,1767534653591,-209.486994,0.00019178,2]
[400419489,1767534653602,-151.0,0.00019178,2]
[400419490,1767534653613,-151.0,0.00019178,2]
[400419491,1767534653623,-151.0,0.00019178,2]
[400419492,1767534653633,-151.0,0.00019178,2]
[400419493,1767534653643,-151.0,0.00019178,2]
[400419494,1767534653653,-151.0,0.00019178,2]
[400419495,1767534653664,-151.0,0.00019178,2]
[400419496,1767534653673,-151.0,0.00019178,2]
[400419497,1767534653683,-151.0,0.00019178,2]
[400419498,1767534653692,-151.0,0.00019178,2]
[400419499,1767534653701,-151.0,0.00019178,2]
[400419500,1767534653710,-151.0,0.00019178,2]
[400419501,1767534653720,-151.0,0.00019178,2]
[400419502,1767534653730,-151.0,0.00019178,2]
[400419503,1767534653739,-151.0,0.00019178,2]
[400419504,1767534653749,-151.0,0.00019178,2]
[400419505,1767534653759,-151.0,0.00019178,2]
[400419506,1767534653769,-151.0,0.00019178,2]
[400419507,1767534653779,-161.659793,0.00019178,2]
[400419508,1767534653789,-152.811245,0.00019178,2]
[400419509,1767534653800,-2116.589615,0.00019178,2]
[400419510,1767534653811,-2116.589615,0.00019178,2]
[400419511,1767534653823,-2116.589615,0.00019178,2]
[400419512,1767534653833,-2116.589615,0.00019178,2]
[400419513,1767534653842,-2116.589615,0.00019178,2]
[400419514,1767534653852,-2116.589615,0.00019178,2]
[400419515,1767534653863,-2116.589615,0.00019178,2]
[400419516,1767534653872,-2116.589615,0.00019178,2]
[400419517,1767534653883,-2116.589615,0.00019178,2]
[400419518,1767534653896,-2116.589615,0.00019178,2]
[400419519,1767534653906,-2116.589615,0.00019178,2]
[400419520,1767534653916,-2116.589615,0.00019178,2]
[400419521,1767534653927,-2116.589615,0.00019178,2]
[400419522,1767534653937,-2116.589615,0.00019178,2]
[400419523,1767534653947,-2116.589615,0.00019178,2]
[400419524,1767534653957,-151.0,0.00019178,2]
[400419525,1767534653968,-2116.589615,0.00019178,2]
[400419526,1767534653978,-151.0,0.00019178,2]
[400419527,1767534653987,-2116.589615,0.00019178,2]
[400419528,1767534653997,-151.0,0.00019178,2]
[400419529,1767534654007,-2116.589615,0.00019178,2]
[400419530,1767534654016,-151.0,0.00019178,2]
[400419531,1767534654027,-2116.589615,0.00019178,2]
[400419532,1767534654037,-161.72515,0.00019178,2]
[400419533,1767534654047,-2116.589612,0.00019178,2]
[400419534,1767534654056,-151.0,0.00019178,2]
[400419535,1767534654066,-151.0,0.00019178,2]
[400419536,1767534654075,-151.0,0.00019178,2]
[400419537,1767534654084,-151.0,0.00019178,2]
[400419538,1767534654094,-151.0,0.00019178,2]
[400419539,1767534654103,-151.0,0.00019178,2]
[400419540,1767534654113,-300.695079,0.00019178,2]
[400419541,1767534654122,-368.394148,0.00019178,2]
[400419542,1767534654131,-151.0,0.00019178,2]
[400419543,1767534654141,-368.394148,0.00019178,2]
[400419544,1767534654150,-207.988279,0.00019178,2]
[400419545,1767534654159,-368.394148,0.00019178,2]
[400419546,1767534654168,-368.394148,0.00019178,2]
[400419547,1767534654178,-368.394148,0.00019178,2]
[400419548,1767534654187,-368.394148,0.00019178,2]
[400419549,1767534654196,-368.394148,0.00019178,2]
[400419550,1767534654205,-368.394148,0.00019178,2]
[400419551,1767534654215,-368.394148,0.00019178,2]
[400419552,1767534654224,-368.394148,0.00019178,2]
[400419553,1767534654233,-368.394148,0.00019178,2]
[400419554,1767534654243,-368.394148,0.00019178,2]
[400419555,1767534654252,-368.394148,0.00019178,2]
[400419556,1767534654261,-151.0,0.00019178,2]
[400419557,1767534654270,-368.394148,0.00019178,2]
[400419558,1767534654279,-151.0,0.00019178,2]
[400419559,1767534654288,-368.394148,0.00019178,2]
[400419560,1767534654298,-368.394148,0.00019178,2]
[400419561,1767534654308,-151.0,0.00019178,2]
[400419562,1767534654317,-368.394148,0.00019178,2]
[400419563,1767534654326,-151.0,0.00019178,2]
[400419564,1767534654335,-1486.471882,0.00019178,2]
[400419565,1767534654345,-368.394148,0.00019178,2]
[400419566,1767534654354,-151.0,0.00019178,2]
[400419567,1767534654363,-1486.471882,0.00019178,2]
[400419568,1767534654372,-368.394148,0.00019178,2]
[400419569,1767534654381,-151.0,0.00019178,2]
[400419570,1767534654391,-1486.471882,0.00019178,2]
[400419571,1767534654400,-151.0,0.00019178,2]
[400419572,1767534654409,-368.394139,0.00019178,2]
[400419573,1767534654420,-151.0,0.00019178,2]
[400419574,1767534654429,-1486.471882,0.00019178,2]
[400419575,1767534654438,-151.0,0.00019178,2]
[400419576,1767534654447,-151.0,0.00019178,2]
[400419577,1767534654457,-1486.471882,0.00019178,2]
[400419578,1767534654466,-194.528417,0.00019178,2]
[400419579,1767534654476,-1486.471882,0.00019178,2]
[400419580,1767534654485,-151.0,0.00019178,2]
[400419581,1767534654494,-1486.471882,0.00019178,2]
[400419582,1767534654503,-151.0,0.00019178,2]
[400419583,1767534654512,-1486.471882,0.00019178,2]
[400419584,1767534654522,-151.0,0.00019178,2]
[400419585,1767534654531,-1486.471882,0.00019178,2]
[400419586,1767534654540,-221.765393,0.00019178,2]
[400419587,1767534654549,-1486.471882,0.00019178,2]
[400419588,1767534654558,-1486.471882,0.00019178,2]
[400419589,1767534654567,-1486.471882,0.00019178,2]
[400419590,1767534654576,-1486.471882,0.00019178,2]
[400419591,1767534654586,-1486.471882,0.00019178,2]
[400419592,1767534654595,-1486.471882,0.00019178,2]
[400419593,1767534654604,-1486.471882,0.00019178,2]
[400419594,1767534654613,-1486.471882,0.00019178,2]
[400419595,1767534654693,-1486.471882,0.00019178,2]
[400419596,1767534654703,-1486.471882,0.00019178,2]
[400419597,1767534654712,-1486.471888,0.00019178,2]
[400419598,1767534654722,-1106.876099,0.00019178,2]
[400419599,1767534654731,-1106.876099,0.00019178,2]
[400419600,1767534654740,-1106.876099,0.00019178,2]
[400419601,1767534654749,-1106.876099,0.00019178,2]
[400419602,1767534654760,-1106.876099,0.00019178,2]
[400419603,1767534654769,-1106.876099,0.00019178,2]
[400419604,1767534654779,-1106.876099,0.00019178,2]
[400419605,1767534654788,-1106.876099,0.00019178,2]
[400419606,1767534654798,-1106.876099,0.00019178,2]
[400419607,1767534654807,-1106.876099,0.00019178,2]
[400419608,1767534654816,-1106.876099,0.00019178,2]
[400419609,1767534654826,-1106.876099,0.00019178,2]
[400419610,1767534654835,-1106.876099,0.00019178,2]
[400419611,1767534654846,-1106.876099,0.00019178,2]
[400419612,1767534654855,-1106.876099,0.00019178,2]
[400419613,1767534654865,-1106.876099,0.00019178,2]
[400419614,1767534654875,-1106.876099,0.00019178,2]
[400419615,1767534654886,-1106.876099,0.00019178,2]
[400419616,1767534654896,-1106.876099,0.00019178,2]
[400419617,1767534654906,-1106.876102,0.00019178,2]
[400419618,1767534654915,-175.767543,0.00019178,2]
[400419619,1767534654926,-187.138243,0.00019178,2]
[400419620,1767534654936,-187.138243,0.00019178,2]
[400419621,1767534654945,-187.138243,0.00019178,2]
[400419622,1767534654955,-187.138243,0.00019178,2]
[400419623,1767534654965,-187.524039,0.00019178,2]
[400419624,1767534654975,-187.138243,0.00019178,2]
[400419625,1767534654984,-187.138243,0.00019178,2]
[400419626,1767534654994,-187.138243,0.00019178,2]
[400419627,1767534655003,-187.138243,0.00019178,2]
[400419628,1767534655013,-187.138243,0.00019178,2]
[400419629,1767534655023,-187.138243,0.00019178,2]
[400419630,1767534655032,-187.138243,0.00019178,2]
[400419631,1767534655042,-187.138243,0.00019178,2]
[400419632,1767534655052,-533.386645,0.00019178,2]
[400419633,1767534655061,-187.138243,0.00019178,2]
[400419634,1767534655071,-430.230833,0.00019178,2]
[400419635,1767534655080,-533.386645,0.00019178,2]
[400419636,1767534655090,-187.138243,0.00019178,2]
[400419637,1767534655100,-430.230833,0.00019178,2]
[400419638,1767534655109,-533.386645,0.00019178,2]
[400419639,1767534655119,-187.138243,0.00019178,2]
[400419640,1767534655128,-430.230833,0.00019178,2]
[400419641,1767534655139,-533.386645,0.00019178,2]
[400419642,1767534655148,-187.138243,0.00019178,2]
[400419643,1767534655158,-430.230833,0.00019178,2]
[400419644,1767534655171,-533.386645,0.00019178,2]
[400419645,1767534655198,-187.138243,0.00019178,2]
[400419646,1767534655217,-430.230833,0.00019178,2]
[400419647,1767534655242,-533.386645,0.00019178,2]
[400419648,1767534655264,-187.138243,0.00019178,2]
[400419649,1767534655287,-430.230833,0.00019178,2]
[400419650,1767534655308,-533.386645,0.00019178,2]
[400419651,1767534655327,-187.138243,0.00019178,2]
[400419652,1767534655342,-430.230833,0.00019178,2]
[400419653,1767534655365,-533.386645,0.00019178,2]
[400419654,1767534655387,-187.138249,0.00019178,2]
[400419655,1767534655405,-430.230833,0.00019178,2]
[400419656,1767534655421,-533.386645,0.00019178,2]
[400419657,1767534655442,-430.230833,0.00019178,2]
[400419658,1767534655458,-533.386645,0.00019178,2]
[400419659,1767534655474,-430.230833,0.00019178,2]
[400419660,1767534655490,-430.230833,0.00019178,2]
[400419661,1767534655506,-533.386645,0.00019178,2]
[400419662,1767534655523,-430.230833,0.00019178,2]
[400419663,1767534655539,-533.386645,0.00019178,2]
[400419664,1767534655555,-430.230833,0.00019178,2]
[400419665,1767534655571,-533.386645,0.00019178,2]
[400419666,1767534655587,-430.230833,0.00019178,2]
[400419667,1767534655602,-533.386645,0.00019178,2]
[400419668,1767534655619,-430.230833,0.00019178,2]
[400419669,1767534655636,-533.386645,0.00019178,2]
[400419670,1767534655653,-430.230833,0.00019178,2]
[400419671,1767534655669,-533.386645,0.00019178,2]
[400419672,1767534655686,-430.230833,0.00019178,2]
[400419673,1767534655702,-533.386645,0.00019178,2]
[400419674,1767534655719,-430.230833,0.00019178,2]
[400419675,1767534655734,-533.386645,0.00019178,2]
[400419676,1767534655751,-430.230833,0.00019178,2]
[400419677,1767534655769,-533.386645,0.00019178,2]
[400419678,1767534655788,-533.386642,0.00019178,2]
[400419679,1767534655805,-430.230834,0.00019178,2]
[400419680,1767534655822,-151.0,0.00019178,2]
[400419681,1767534655840,-151.0,0.00019178,2]
[400419682,1767534655857,-151.0,0.00019178,2]
[400419683,1767534655875,-151.0,0.00019178,2]
[400419684,1767534655895,-261.86514,0.00019178,2]
[400419685,1767534655913,-151.0,0.00019178,2]
[400419686,1767534655930,-151.0,0.00019178,2]
[400419687,1767534655949,-151.0,0.00019178,2]
[400419688,1767534655968,-151.0,0.00019178,2]
[400419689,1767534655985,-151.0,0.00019178,2]
[400419690,1767534656002,-151.0,0.00019178,2]
[400419691,1767534656019,-151.0,0.00019178,2]
[400419692,1767534656037,-151.0,0.00019178,2]
[400419693,1767534656055,-151.0,0.00019178,2]
[400419694,1767534656195,-151.0,0.00019178,2]
[400419695,1767534656204,-226.805446,0.00019178,2]
[400419696,1767534656214,-813.136537,0.00019178,2]
[400419697,1767534656224,-813.136537,0.00019178,2]
[400419698,1767534656234,-813.136537,0.00019178,2]
[400419699,1767534656244,-813.136537,0.00019178,2]
[400419700,1767534656253,-813.136537,0.00019178,2]
[400419701,1767534656263,-813.136537,0.00019178,2]
[400419702,1767534656272,-813.136537,0.00019178,2]
[400419703,1767534656281,-813.136537,0.00019178,2]
[400419704,1767534656292,-813.136537,0.00019178,2]
[400419705,1767534656301,-813.136537,0.00019178,2]
[400419706,1767534656311,-813.136537,0.00019178,2]
[400419707,1767534656320,-813.136537,0.00019178,2]
[400419708,1767534656330,-813.136537,0.00019178,2]
[400419709,1767534656339,-813.136537,0.00019178,2]
[400419710,1767534656348,-813.136537,0.00019178,2]
[400419711,1767534656358,-813.136537,0.00019178,2]
[400419712,1767534656367,-813.136537,0.00019178,2]
[400419713,1767534656377,-813.136537,0.00019178,2]
[400419714,1767534656386,-813.136537,0.00019178,2]
[400419715,1767534656395,-813.13653,0.00019178,2]
[400419716,1767534656403,-245.063653,0.00019178,2]
[400419717,1767534656412,-245.063653,0.00019178,2]
[400419718,1767534656422,-900.0,0.00019178,2]
[400419719,1767534656432,-3653.72,0.000192,2]
[400419720,1767534656442,-301.99,0.000192,2]
[400419721,1767534656451,-286.51,0.000192,2]
[400419722,1767534656460,-167.7,0.000192,2]
[400419723,1767534656470,-303.2061626,0.00019278,2]
[400419724,1767534656479,-303.21223037,0.00019278,2]
[400419725,1767534656489,-36465.78,0.000193,2]
[400419726,1767534656498,-300.0,0.00019315,2]
[400419727,1767534656508,-1000.0,0.0001933,2]
[400419728,1767534656518,-791.0,0.0001933,2]
[400419729,1767534656527,-352.2,0.00019347,2]
[400419730,1767534656536,-600.0,0.00019366,7]
[400419731,1767534656546,-178.9600823,0.00019424,30]
[400419732,1767534656555,-160.0,0.00019428,9]
[400419733,1767534656565,-450.18747993,0.00019452,2]
[400419734,1767534656575,-303.2061626,0.00019467,2]
[400419735,1767534656584,-303.21223037,0.00019467,2]
[400419736,1767534656594,-11299.060809,0.000195,2]
[400419737,1767534656604,-175.717707,0.00019635,2]
[400419738,1767534656613,-303.2061626,0.00019656,2]
[400419739,1767534656622,-303.21223037,0.00019656,2]
[400419740,1767534656632,-1548.57506706,0.00019726,2]
[400419741,1767534656641,-1230.288301,0.0001976,5]
[400419742,1767534656651,-199.409232,0.00019762,2]
[400419743,1767534656660,-193.6002408,0.00019762,2]
[400419744,1767534656670,-193.6002407,0.00019762,2]
[400419745,1767534656679,-193.6002407,0.00019762,2]
[400419746,1767534656688,-193.6002407,0.00019762,2]
[400419747,1767534656697,-193.6002407,0.00019762,2]
[400419748,1767534656707,-193.6002407,0.00019762,2]
[400419749,1767534656716,-193.6002407,0.00019762,2]
[400419750,1767534656725,-193.6002407,0.00019762,2]
[400419751,1767534656734,-193.6002407,0.00019762,2]
[400419752,1767534656743,-352.2,0.00019763,2]
[400419753,1767534656752,-1000.0,0.0001978,5]
[400419754,1767534656762,-160.0,0.00019788,10]
[400419755,1767534656772,-1000.0,0.000198,5]
[400419756,1767534656781,-1000.0,0.0001982,5]
[400419757,1767534656790,-1000.0,0.0001984,5]
[400419758,1767534656799,-454.80924391,0.00019845,4]
[400419759,1767534656809,-454.81834555,0.00019845,4]
[400419760,1767534656819,-178.9600823,0.0001985,30]
[400419761,1767534656830,-1000.0,0.0001986,5]
[400419762,1767534656839,-1000.0,0.0001988,5]
[400419763,1767534656849,-1000.0,0.000199,5]
[400419764,1767534656859,-1000.0,0.0001992,5]
[400419765,1767534656868,-1000.0,0.0001994,5]
[400419766,1767534656878,-1068.38538,0.0001996,5]
[400419767,1767534656889,-1000.0,0.0001996,5]
[400419768,1767534656899,-166.0,0.0001997,2]
[400419769,1767534656908,-166.0,0.0001997,2]
[400419770,1767534656917,-163.0,0.0001997,2]
[400419771,1767534656927,-166.0,0.0001997,2]
[400419772,1767534656938,-152.0,0.0001997,2]
[400419773,1767534656947,-152.0,0.0001997,2]
[400419774,1767534656957,-184.98755332,0.0001997,2]
[400419775,1767534656967,-152.0,0.0001997,2]
[400419776,1767534656976,-153.76138875,0.0001997,2]
[400419777,1767534656985,-1000.0,0.0001998,5]
[400419778,1767534656994,-1000.0,0.0001998,5]
[400419779,1767534657004,-563.21667257,0.0002,2]
[400419780,1767534657013,-2285.86649662,0.0002,30]
[400419781,1767534657023,-617.22277842,0.0002,2]
[400419782,1767534657032,-14537.72367137,0.0002,2]
[400419783,1767534657041,-9999.999999,0.0002,7]
[400419784,1767534657050,-32957.79933473,0.0002,20]
[400419785,1767534657059,-371.11751909,0.0002,2]
[400419786,1767534657068,-96027.34539435,0.0002,2]
[400419787,1767534657077,-505.62779743,0.0002,2]
[400419788,1767534657087,-3771.86743473,0.0002,30]
[400419789,1767534657096,-610.38501589,0.0002,2]
[400419790,1767534657105,-23000.0,0.0002,2]
[400419791,1767534657114,-202.45861978,0.0002,2]
[400419792,1767534657124,-400.0,0.0002,30]
[400419793,1767534657133,-318.87142967,0.0002,30]
[400419794,1767534657143,-161.28477143,0.0002,30]
[400419795,1767534657151,-159.80005479,0.0002,2]
[400419796,1767534657161,-160.0,0.0002,14]
[400419797,1767534657170,-1000.0,0.0002,5]
[400419798,1767534657179,-1000.0,0.0002,5]
[400419799,1767534657189,-250.0,0.0002,10]
[400419800,1767534657199,-2000.0,0.0002,7]
[400419801,1767534657208,-454.80924391,0.00020034,4]
[400419802,1767534657218,-454.81834555,0.00020034,4]
[400419803,1767534657308,-250.0,0.000201,10]
[400419804,1767534657318,-5235.3488527,0.00020125,2]
[400419805,1767534657328,-440.34548428,0.0002013,2]
[400419806,1767534657338,-160.0,0.00020148,11]
[400419807,1767534657348,-600.0,0.0002017,2]
[400419808,1767534657357,-352.2,0.00020179,2]
[400419809,1767534657367,-1051.987599,0.00020187,2]
[400419810,1767534657377,-250.0,0.000202,10]
[400419811,1767534657387,-454.80924391,0.00020223,4]
[400419812,1767534657396,-454.81834555,0.00020223,4]
[400419813,1767534657406,-677.05030511,0.00020268,2]
[400419814,1767534657416,-322.02814814,0.00020277,30]
[400419815,1767534657425,-250.0,0.000203,10]
[400419816,1767534657436,-600.0,0.0002038,2]
[400419817,1767534657446,-156.0,0.00020384,3]
[400419818,1767534657455,-257.007075,0.000204,10]
[400419819,1767534657464,-454.80924391,0.00020412,4]
[400419820,1767534657474,-454.81834555,0.00020412,4]
[400419821,1767534657484,-13906.95663075,0.00020461,20]
[400419822,1767534657493,-600.0,0.00020462,7]
[400419823,1767534657503,-3653.72,0.000205,2]
[400419824,1767534657512,-301.99,0.000205,2]
[400419825,1767534657522,-286.51,0.000205,2]
[400419826,1767534657531,-1774.899659,0.000205,2]
[400419827,1767534657540,-2000.0,0.000205,7]
[400419828,1767534657550,-160.0,0.00020508,12]
[400419829,1767534657558,-1811.906025,0.00020548,2]
[400419830,1767534657567,-600.0,0.0002059,2]
[400419831,1767534657577,-928.02991693,0.0002059,2]
[400419832,1767534657586,-352.2,0.00020594,2]
[400419833,1767534657595,-454.80924391,0.00020601,4]
[400419834,1767534657604,-454.81834555,0.00020601,4]
[400419835,1767534657614,-1387.44429035,0.0002061,2]
[400419836,1767534657624,-600.0,0.000208,2]
[400419837,1767534657633,-36465.78,0.000208,2]
[400419838,1767534657643,-160.0,0.00020868,13]
[400419839,1767534657653,-161.11360208,0.00020868,5]
[400419840,1767534657662,-628.0,0.00020978,2]
[400419841,1767534657671,-714.0,0.00020978,2]
[400419842,1767534657681,-178.0,0.00020978,2]
[400419843,1767534657690,-19832.77135922,0.00021,2]
[400419844,1767534657699,-3000.0,0.00021,2]
[400419845,1767534657708,-703.35,0.00021,7]
[400419846,1767534657717,-1000.0,0.00021,2]
[400419847,1767534657726,-2000.0,0.00021,7]
[400419848,1767534657735,-3000.0,0.0002101,2]
[400419849,1767534657745,-352.2,0.0002101,2]
[400419850,1767534657756,-600.0,0.0002101,2]
[400419851,1767534657765,-3000.0,0.0002102,2]
[400419852,1767534657775,-3000.0,0.0002103,2]
[400419853,1767534657784,-3000.0,0.0002104,2]
[400419854,1767534657794,-3000.0,0.0002105,2]
[400419855,1767534657803,-3000.0,0.0002106,2]
[400419856,1767534657813,-3000.0,0.0002107,2]
[400419857,1767534657822,-3000.0,0.0002108,2]
[400419858,1767534657832,-3000.0,0.0002109,2]
[400419859,1767534657841,-3000.0,0.000211,2]
[400419860,1767534657851,-3000.0,0.0002111,2]
[400419861,1767534657860,-3000.0,0.0002112,2]
[400419862,1767534657870,-3000.0,0.0002113,2]
[400419863,1767534657879,-3000.0,0.0002114,2]
[400419864,1767534657892,-3000.0,0.0002115,2]
[400419865,1767534657902,-3000.0,0.0002116,2]
[400419866,1767534657911,-3000.0,0.0002117,2]
[400419867,1767534657921,-3000.0,0.0002118,2]
[400419868,1767534657931,-3000.0,0.0002119,2]
[400419869,1767534657943,-3000.0,0.000212,2]
[400419870,1767534657952,-3000.0,0.0002121,2]
[400419871,1767534657962,-3000.0,0.0002122,2]
[400419872,1767534657972,-600.0,0.0002122,2]
[400419873,1767534657982,-3000.0,0.0002123,2]
[400419874,1767534657991,-3000.0,0.0002124,2]
[400419875,1767534658000,-3000.0,0.0002125,2]
[400419876,1767534658009,-3000.0,0.0002126,2]
[400419877,1767534658019,-1000.0,0.00021262,10]
[400419878,1767534658028,-1000.0,0.00021262,10]
[400419879,1767534658038,-3000.0,0.0002127,2]
[400419880,1767534658047,-3000.0,0.0002128,2]
[400419881,1767534658056,-3000.0,0.0002129,2]
[400419882,1767534658066,-3000.0,0.000213,2]
[400419883,1767534658075,-3000.0,0.0002131,2]
[400419884,1767534658085,-3000.0,0.0002132,2]
[400419885,1767534658094,-3000.0,0.0002133,2]
[400419886,1767534658103,-3000.0,0.0002134,2]
[400419887,1767534658113,-3000.0,0.0002135,2]
[400419888,1767534658122,-3000.0,0.0002136,2]
[400419889,1767534658131,-3000.0,0.0002137,2]
[400419890,1767534658140,-3000.0,0.0002138,2]
[400419891,1767534658149,-3000.0,0.0002139,2]
[400419892,1767534658159,-3000.0,0.000214,2]
[400419893,1767534658168,-3000.0,0.0002141,2]
[400419894,1767534658178,-173.69,0.0002142,2]
[400419895,1767534658188,-3831.610653,0.0002142,2]
[400419896,1767534658197,-600.0,0.0002143,2]
[400419897,1767534658207,-156.0,0.00021479,4]
[400419898,1767534658215,-1038.45342928,0.000215,2]
[400419899,1767534658225,-12843.99800485,0.000215,2]
[400419900,1767534658234,-173.69,0.000215,2]
[400419901,1767534658243,-2000.0,0.000215,7]
[400419902,1767534658253,-600.0,0.00021558,7]
[400419903,1767534658262,-173.69,0.00021613,2]
[400419904,1767534658272,-600.0,0.0002164,2]
[400419905,1767534658281,-142405.57979279,0.00021717,2]
[400419906,1767534658518,-50718.89389613,0.00021717,2]
[400419907,1767534658527,-314.59,0.000218,30]
[400419908,1767534658537,-723.04108843,0.0002185,2]
[400419909,1767534658547,-15626.57620959,0.00021899,25]
[400419910,1767534658557,-3653.72,0.000219,2]
[400419911,1767534658567,-301.99,0.000219,2]
[400419912,1767534658576,-286.51,0.000219,2]
[400419913,1767534658586,-250.0,0.000219,2]
[400419914,1767534658595,-250.0,0.000219,2]
[400419915,1767534658605,-250.0,0.000219,2]
[400419916,1767534658614,-250.0,0.000219,2]
[400419917,1767534658624,-250.0,0.000219,2]
[400419918,1767534658633,-250.0,0.000219,2]
[400419919,1767534658643,-250.0,0.000219,2]
[400419920,1767534658652,-250.0,0.000219,2]
[400419921,1767534658661,-206.2,0.000219,2]
[400419922,1767534658670,-500.0,0.00021908,2]
[400419923,1767534658680,-2698.8918647,0.00021917,2]
[400419924,1767534658690,-685.731776,0.00021917,2]
[400419925,1767534658700,-208.794785,0.00021917,2]
[400419926,1767534658709,-500.0,0.00021917,2]
[400419927,1767534658719,-609.58706372,0.00021917,2]
[400419928,1767534658728,-500.0,0.00021917,2]
[400419929,1767534658737,-500.0,0.00021917,2]
[400419930,1767534658748,-500.0,0.00021917,2]
[400419931,1767534658757,-500.0,0.00021917,2]
[400419932,1767534658767,-500.0,0.00021917,2]
[400419933,1767534658777,-500.0,0.00021917,2]
[400419934,1767534658786,-500.0,0.00021917,2]
[400419935,1767534658795,-500.0,0.00021917,2]
[400419936,1767534658805,-564.10165242,0.00021917,2]
[400419937,1767534658814,-500.0,0.00021917,2]
[400419938,1767534658824,-500.0,0.00021917,2]